bitfinex-derivatives/quotes_ETHF0:USTF0_20250803
["timestamp","ask_amount","ask_price","bid_price","bid_amount"]
[1754180026574,1.8852,3402.3,3402.2,2.0813]
[1754180026761,0.9905,3402.3,3402.2,2.0813]
[1754180026961,0.9905,3403.3,3403.0,0.58784]
[1754180027171,0.9905,3403.3,3403.2,0.58781]
[1754180027471,0.9905,3403.3,3403.2,2.66911]
[1754180027673,0.9905,3403.3,3403.2,2.0813]
[1754180028879,3.2078,3403.5,3403.2,2.0813]
[1754180029063,1.4686,3405.4,3403.8,0.8805]
[1754180029064,3.2078,3403.9,3403.8,0.8805]
[1754180029375,1.8852,3404.0,3403.4,0.9692]
[1754180029571,0.9905,3404.0,3403.8,0.58769]
[1754180029877,0.9905,3403.9,3403.7,0.58771]
[1754180030173,0.9905,3403.9,3403.4,0.9692]
[1754180030174,2.1291,3404.1,3403.4,0.9692]
[1754180030382,0.9905,3404.0,3403.9,0.8805]
[1754180030673,0.9905,3404.0,3403.9,2.0813]
[1754180031768,3.1196,3404.0,3403.7,0.5877]
[1754180031972,5.3369,3404.0,3403.8,1.2008]
[1754180032172,3.1196,3403.9,3403.8,1.2008]
[1754180032471,3.1196,3403.9,3403.8,2.0813]
[1754180033071,3.79548,3404.0,3403.4,2.66907]
[1754180033274,1.2344,3403.8,3403.5,1.2008]
[1754180033464,3.79548,3404.0,3403.5,1.2008]
[1754180033663,3.1196,3403.6,3403.5,1.2008]
[1754180034573,3.1196,3403.6,3403.5,2.0813]
[1754180035770,0.8947,3403.3,3403.2,2.66909]
[1754180036077,0.9905,3403.3,3403.2,2.66909]
[1754180036464,3.1196,3403.3,3403.2,2.66909]
[1754180037062,0.58777,3403.4,3403.0,0.58783]
[1754180037262,1.8852,3403.0,3402.9,3.2078]
[1754180037575,3.1196,3403.0,3402.9,5.2891]
[1754180038477,3.1196,3403.0,3402.9,2.0813]
[1754180040078,2.52073267,3404.9,3403.3,0.8498]
[1754180040079,0.855,3403.5,3403.3,0.8498]
[1754180040376,0.58774,3403.6,3403.4,0.8498]
[1754180040567,2.0525,3403.5,3403.4,0.8498]
[1754180040766,2.9822,3403.5,3403.4,0.8498]
[1754180040967,1.1975,3403.5,3403.3,0.58779]
[1754180041275,1.1975,3403.6,3403.5,1.2111]
[1754180041576,1.1975,3403.4,3403.2,1.43761]
[1754180041875,0.9297,3403.3,3403.2,1.43761]
[1754180042176,1.7847,3403.3,3403.2,2.0609]
[1754180042376,2.9822,3403.2,3403.0,1.2111]
[1754180042575,2.0525,3403.1,3403.0,1.2111]
[1754180042768,2.9822,3403.1,3403.0,1.2111]
[1754180043172,3.2078,3403.3,3402.9,1.43766]
[1754180043372,2.9822,3403.0,3402.9,0.8498]
[1754180043677,2.9822,3402.9,3402.8,1.79897]
[1754180044069,1.7847,3403.2,3402.5,5.00682]
[1754180044267,2.9822,3403.1,3402.5,4.4189]
[1754180044578,1.46936,3403.6,3402.3,0.8498]
[1754180044579,2.0525,3402.8,3402.4,0.58794]
[1754180044767,2.9822,3402.7,3402.4,0.58794]
[1754180044967,2.0525,3402.6,3402.4,1.79904]
[1754180045170,0.58794,3402.5,3402.2,1.2111]
[1754180045369,0.9297,3402.4,3402.1,3.2078]
[1754180045574,2.9822,3402.2,3402.1,3.2078]
[1754180045780,2.9822,3402.2,3402.1,4.4189]
[1754180045981,2.9822,3402.2,3402.1,5.2687]
[1754180046172,2.9822,3402.2,3402.1,2.0609]
[1754180046878,0.9297,3402.0,3401.8,1.2111]
[1754180047086,2.9822,3401.8,3401.7,3.2078]
[1754180047279,1.7847,3401.8,3401.7,5.2687]
[1754180047479,1.7847,3401.8,3401.7,2.0609]
[1754180047679,3.57025,3401.8,3401.4,0.58812]
[1754180047881,3.2078,3402.1,3401.4,0.58812]
[1754180047882,1.7847,3401.5,3401.4,1.2111]
[1754180048073,2.9822,3401.5,3401.4,1.2111]
[1754180048280,2.9822,3401.5,3401.2,3.79594]
[1754180048281,2.9822,3401.4,3401.2,3.2078]
[1754180048585,2.9822,3401.3,3401.2,4.4189]
[1754180049079,2.9822,3401.3,3401.2,5.2687]
[1754180049380,2.0525,3402.0,3401.6,0.58808]
[1754180049582,3.7958,3402.1,3401.7,2.0609]
[1754180049583,2.0525,3401.9,3401.7,2.0609]
[1754180049785,3.2078,3402.1,3401.8,0.58805]
[1754180049989,4.1375,3402.1,3402.0,2.64892]
[1754180050179,4.9925,3402.1,3402.0,2.0609]
[1754180050486,4.9925,3402.1,3401.7,0.9149]
[1754180050487,3.2078,3402.1,3401.7,0.58807]
[1754180050882,2.9822,3401.9,3401.7,1.79917]
[1754180051080,2.9822,3401.8,3401.7,1.79917]
[1754180051991,2.9822,3401.8,3401.7,2.64897]
[1754180053492,2.9822,3401.8,3401.7,2.0609]
[1754180054883,0.9297,3402.0,3401.9,2.0609]
[1754180055083,0.9297,3402.0,3401.9,2.9758]
[1754180055477,0.9297,3401.8,3401.6,0.58807]
[1754180055701,2.0525,3401.7,3401.1,3.2078]
[1754180055878,0.58808,3401.6,3401.1,4.64576]
[1754180056078,3.2078,3402.1,3401.3,0.58813]
[1754180056280,1.7847,3401.8,3401.7,2.0609]
[1754180056784,0.9297,3401.8,3401.7,2.0609]
[1754180057392,3.2078,3402.1,3401.8,0.58805]
[1754180057585,0.855,3402.0,3401.9,0.8498]
[1754180057784,4.1375,3402.1,3402.0,2.64892]
[1754180058193,6.19,3402.1,3402.0,2.0609]
[1754180058891,1.7847,3402.0,3401.5,1.2111]
[1754180059080,3.2078,3402.1,3401.4,0.8498]
[1754180059081,2.9822,3401.9,3401.8,1.2111]
[1754180059280,3.2078,3402.1,3401.9,0.58803]
[1754180059481,6.19,3402.1,3402.0,2.0609]
[1754180059686,6.19,3402.1,3401.8,0.58804]
[1754180059895,1.7847,3402.0,3401.8,1.43784]
[1754180060089,1.7847,3401.9,3401.8,1.43784]
[1754180060393,2.9822,3401.9,3401.8,1.43784]
[1754180060590,2.9822,3401.9,3401.8,0.8498]
[1754180060891,2.9822,3401.9,3401.8,2.0609]
[1754180061694,3.2078,3402.1,3401.9,2.35273]
[1754180061894,3.2078,3402.1,3402.0,1.7647]
[1754180062094,4.1375,3402.1,3402.0,2.9758]
[1754180063395,2.0525,3402.0,3401.8,2.0609]
[1754180063692,1.1975,3401.9,3401.7,0.58806]
[1754180063904,2.9822,3401.8,3401.7,0.58806]
[1754180064090,2.9822,3401.8,3401.7,1.43786]
[1754180064398,2.9822,3401.8,3401.7,2.64896]
[1754180064694,1.7847,3401.8,3401.7,2.64896]
[1754180065399,2.4065,3401.8,3401.7,4.68986]
[1754180065893,3.7883,3401.8,3401.2,3.2078]
[1754180066092,0.9297,3401.7,3401.3,2.0609]
[1754180066285,0.9297,3401.7,3401.5,0.8099]
[1754180066286,3.0068,3401.6,3401.5,0.8099]
[1754180066491,2.1518,3401.6,3401.5,4.6899]
[1754180068100,1.9865,3401.3,3401.2,4.6894]
[1754180068297,4.9571,3401.3,3401.2,3.2078]
[1754180068494,1.197,3401.6,3401.3,0.58814]
[1754180068693,1.197,3401.6,3401.5,4.0628]
[1754180068694,1.5584,3401.6,3401.5,4.0628]
[1754180068997,0.66,3401.9,3401.8,2.8669]
[1754180069198,0.66,3401.9,3401.8,5.0291]
[1754180069594,1.5584,3401.9,3401.8,5.0291]
[1754180070196,4.7662,3402.1,3402.0,1.9812]
[1754180070397,4.7662,3402.1,3402.0,4.0628]
[1754180070697,6.2061,3402.1,3402.0,4.0628]
[1754180071204,8.1649,3402.1,3402.0,4.0628]
[1754180072097,3.2078,3402.5,3402.4,2.8669]
[1754180072303,3.8678,3402.9,3402.8,4.0628]
[1754180072595,4.68831124,3402.9,3402.8,4.0628]
[1754180072800,7.02661124,3402.9,3402.8,4.0628]
[1754180073199,4.1062,3403.3,3402.8,3.0493]
[1754180073391,4.7662,3403.3,3403.2,4.0628]
[1754180073592,6.15181548,3403.3,3403.2,4.0628]
[1754180073795,7.02701548,3403.3,3403.2,4.0628]
[1754180075506,8.07894815,3403.3,3403.2,4.0628]
[1754180076199,7.02701548,3403.3,3403.2,4.0628]
[1754180076397,6.01521548,3403.3,3402.4,3.2078]
[1754180076597,0.66,3402.9,3402.8,2.56907]
[1754180076808,0.66,3402.9,3402.8,3.76497]
[1754180076809,2.37931548,3402.9,3402.8,3.76497]
[1754180077201,2.37931548,3402.9,3402.8,4.65067]
[1754180078803,3.81921548,3402.9,3402.8,4.0628]
[1754180079003,5.77801548,3402.9,3402.8,4.0628]
[1754180079308,4.9571,3402.9,3402.8,4.0628]
[1754180079802,5.3309,3403.3,3403.2,4.0628]
[1754180080004,1.78807346,3404.0,3403.8,0.58769]
[1754180080005,1.05193267,3404.0,3403.8,0.58769]
[1754180080305,1.05193267,3404.8,3404.6,0.58757]
[1754180080501,3.2078,3404.9,3404.8,1.47323]
[1754180080810,4.02742989,3404.9,3404.8,3.63683]
[1754180081498,0.81962989,3404.9,3404.8,3.63683]
[1754180081902,0.81962989,3404.9,3404.8,3.0493]
[1754180082100,2.59322989,3404.9,3404.8,2.0816]
[1754180082410,2.9706,3404.7,3404.6,3.2078]
[1754180082798,0.58757,3404.6,3404.2,1.1959]
[1754180083110,1.7736,3404.4,3404.3,2.0816]
[1754180083502,1.197,3403.0,3401.0,3.2078]
[1754180083699,1.197,3403.0,3401.3,0.9824]
[1754180083700,4.4048,3401.4,3401.3,0.9824]
[1754180083903,1.197,3401.3,3401.0,0.9824]
[1754180084109,1.197,3401.2,3400.5,2.1783]
[1754180084407,1.197,3401.0,3400.5,1.8681]
[1754180084703,4.4048,3400.7,3400.6,0.9824]
[1754180084909,4.4048,3400.7,3400.3,1.1959]
[1754180084910,1.197,3400.5,3400.4,0.9824]
[1754180085708,3.2078,3400.7,3400.4,0.8857]
[1754180086011,1.197,3400.6,3400.5,0.9824]
[1754180086602,1.197,3400.6,3400.5,2.1783]
[1754180086822,1.197,3400.6,3400.5,3.064]
[1754180089030,3.2078,3400.7,3400.5,3.064]
[1754180089230,3.2078,3400.7,3400.6,3.064]
[1754180090024,4.4048,3400.7,3400.6,0.9824]
[1754180091529,3.2078,3400.7,3400.6,3.064]
[1754180092127,0.58817,3401.2,3401.0,0.58819]
[1754180092128,3.2078,3401.2,3401.0,0.58819]
[1754180092429,3.2078,3401.2,3400.7,0.58823]
[1754180092730,1.7736,3401.1,3400.7,0.58823]
[1754180092932,2.9706,3401.1,3400.8,1.8681]
[1754180093227,0.8752,3401.0,3400.9,2.1783]
[1754180093526,0.8752,3401.0,3400.7,0.58823]
[1754180093527,3.2078,3401.2,3401.1,2.0816]
[1754180093724,3.2078,3401.2,3401.1,3.064]
[1754180094027,0.8752,3401.0,3400.5,1.8681]
[1754180094223,3.2078,3400.8,3400.6,2.1783]
[1754180094425,2.9706,3400.7,3400.6,2.1783]
[1754180094823,2.9706,3400.7,3400.4,0.58829]
[1754180095025,0.8752,3400.6,3400.1,0.58834]
[1754180095224,0.8984,3400.5,3400.1,0.58834]
[1754180095423,2.9706,3400.4,3400.1,3.65234]
[1754180095629,3.79603,3400.8,3400.3,0.5883]
[1754180095937,3.2078,3400.4,3400.3,0.5883]
[1754180096125,6.1784,3400.4,3400.3,0.5883]
[1754180096529,3.2078,3400.4,3400.3,3.6523]
[1754180097030,4.083,3400.8,3400.7,0.58824]
[1754180097231,4.083,3400.8,3400.7,3.65224]
[1754180097732,4.9814,3400.8,3400.7,3.65224]
[1754180097931,6.1784,3400.8,3400.7,3.65224]
[1754180098530,6.1784,3400.8,3400.3,0.5883]
[1754180098732,1.8565,3400.6,3400.2,0.58832]
[1754180099035,3.0539,3400.6,3400.2,0.58832]
[1754180099234,3.79603,3400.8,3400.2,0.58832]
[1754180099631,3.0539,3400.3,3400.2,0.58832]
[1754180099931,3.2078,3400.4,3400.2,3.63042]
[1754180100132,3.2078,3400.4,3400.3,3.0421]
[1754180100529,3.2078,3400.5,3400.2,0.58833]
[1754180100729,3.2078,3400.5,3400.4,3.0421]
[1754180102640,0.9081,3402.3,3402.2,0.58798]
[1754180102935,0.9081,3402.4,3402.3,2.1635]
[1754180103136,3.2078,3402.6,3402.0,1.2299]
[1754180103333,1.1974,3402.1,3401.9,0.58802]
[1754180103531,1.1974,3402.1,3401.5,1.2299]
[1754180103532,3.0539,3402.1,3401.5,1.2299]
[1754180103733,3.0539,3402.1,3401.5,0.58809]
[1754180103734,3.0539,3401.7,3401.5,0.58809]
[1754180104041,3.2078,3401.8,3401.3,0.58813]
[1754180104244,3.64197,3401.7,3401.1,0.58816]
[1754180104549,3.2078,3401.3,3401.0,0.58818]
[1754180104931,0.9081,3402.1,3402.0,2.75152]
[1754180105127,3.0539,3402.1,3401.2,4.4377]
[1754180105332,3.2078,3401.8,3401.2,1.2299]
[1754180105541,3.0539,3401.6,3401.2,1.2299]
[1754180105741,3.0539,3401.5,3401.2,2.1635]
[1754180105939,2.1458,3401.4,3401.2,2.1635]
[1754180106141,0.9081,3401.3,3401.2,2.75165]
[1754180106437,3.2078,3401.8,3401.6,1.81797]
[1754180106745,4.1159,3402.2,3402.1,1.5216]
[1754180107041,4.1159,3402.2,3402.1,3.1447]
[1754180107343,3.2078,3402.2,3402.1,3.1447]
[1754180107845,4.1159,3402.2,3402.1,3.1447]
[1754180108739,4.1159,3402.2,3402.1,2.7515]
[1754180109543,4.1159,3402.2,3402.1,2.1635]
[1754180109934,5.3133,3402.2,3402.1,2.1635]
[1754180110135,6.2617,3402.2,3402.1,2.1635]
[1754180112744,2.1458,3402.1,3402.0,1.2299]
[1754180112943,2.1458,3401.9,3401.2,1.2299]
[1754180113242,2.1458,3401.9,3400.9,4.67832]
[1754180113243,3.0539,3401.8,3401.7,2.75157]
[1754180113442,3.0539,3401.8,3400.9,4.67832]
[1754180113443,2.1458,3401.7,3401.2,0.58816]
[1754180113646,2.1458,3401.5,3401.4,0.58811]
[1754180113841,3.0539,3401.5,3401.4,0.58811]
[1754180114037,3.0539,3401.5,3400.9,3.2078]
[1754180114038,3.0539,3401.7,3400.9,3.2078]
[1754180114242,3.2078,3401.4,3400.9,3.2078]
[1754180114548,3.0539,3401.0,3400.9,3.2078]
[1754180115342,3.0539,3400.8,3400.1,4.4377]
[1754180115542,3.0539,3400.6,3400.1,3.2078]
[1754180115742,2.1458,3400.5,3400.1,3.2078]
[1754180115938,3.0539,3400.5,3400.4,1.52188]
[1754180116141,0.9081,3400.5,3400.4,3.14498]
[1754180117835,20.986,3401.6,3400.1,3.2078]
[1754180117836,2.1055,3401.3,3401.2,0.58816]
[1754180118041,0.9081,3401.3,3401.2,2.5567]
[1754180118246,0.9081,3401.1,3400.6,2.1635]
[1754180118547,4.1159,3401.4,3401.3,2.5567]
[1754180118846,4.1159,3401.4,3401.3,2.1635]
[1754180119041,0.58814,3401.3,3400.9,1.3268]
[1754180119242,3.0539,3401.1,3400.8,1.2299]
[1754180119439,3.0539,3400.9,3400.8,1.2299]
[1754180119844,3.0539,3400.9,3400.6,1.52185]
[1754180120043,3.0539,3400.7,3400.6,1.52185]
[1754180120246,3.0539,3400.7,3400.6,2.75175]
[1754180120443,3.2078,3401.4,3400.6,2.1635]
[1754180120645,0.9081,3401.3,3400.8,1.81813]
[1754180120946,3.0539,3401.3,3401.0,1.81809]
[1754180121143,2.1458,3401.3,3401.2,1.2299]
[1754180121641,3.2078,3401.4,3401.3,0.9336]
[1754180121847,6.2617,3401.4,3401.3,0.9336]
[1754180122239,2.1055,3401.3,3401.1,1.81806]
[1754180122439,0.9081,3401.2,3401.1,1.91496]
[1754180122850,4.1159,3401.4,3401.1,0.58816]
[1754180123150,3.2078,3401.4,3401.3,2.5567]
[1754180124258,0.58814,3401.3,3400.6,3.2078]
[1754180124452,2.1458,3401.3,3400.6,0.58826]
[1754180124750,0.58819,3401.0,3400.6,0.58825]
[1754180124961,3.0539,3400.9,3400.6,2.75175]
[1754180125153,0.9081,3400.7,3400.6,0.98145]
[1754180125744,1.8565,3400.7,3400.6,1.3268]
[1754180125947,3.0539,3400.7,3400.6,2.1635]
[1754180128747,3.50216,3400.6,3400.3,2.0779]
[1754180128946,2.9139,3400.5,3400.3,2.0779]
[1754180129248,2.9139,3400.4,3400.3,2.0779]
[1754180129652,1.76,3400.4,3400.3,2.4719]
[1754180129841,2.9139,3400.4,3400.3,2.0779]
[1754180132252,2.9139,3400.4,3400.3,1.1457]
[1754180132455,0.8593,3400.4,3400.3,2.4719]
[1754180133352,0.9007,3400.1,3399.9,1.0588391]
[1754180133550,0.58847,3399.4,3399.3,3.2078]
[1754180133753,1.0822,3399.1,3398.9,3.60878641]
[1754180133957,0.58849,3399.3,3398.7,4.19736641]
[1754180134151,0.8593,3398.9,3398.8,2.4719]
[1754180134356,0.2229,3399.4,3398.9,0.58854]
[1754180134548,0.2229,3399.7,3399.1,0.58852]
[1754180134749,0.8593,3399.4,3399.3,0.9322]
[1754180134950,0.2229,3399.7,3399.4,0.58847]
[1754180135253,0.8593,3399.5,3398.7,1.1457]
[1754180135461,4.0671,3399.6,3399.5,2.0779]
[1754180135760,0.8593,3399.9,3399.8,0.394]
[1754180135949,0.9007,3400.0,3399.7,0.5884]
[1754180135950,3.2078,3400.5,3400.3,0.5883]
[1754180136152,0.82838568,3400.4,3400.3,0.9322]
[1754180136451,1.68768568,3400.4,3400.3,0.9322]
[1754180136659,1.68768568,3400.4,3400.3,2.0779]
[1754180137248,1.76,3400.4,3400.3,2.0779]
[1754180137456,0.8593,3400.4,3400.3,2.4719]
[1754180137954,1.76,3400.8,3400.7,0.58824]
[1754180138154,0.82758922,3400.8,3400.7,3.06014]
[1754180138660,1.1236,3401.1,3400.8,1.52042]
[1754180138857,0.82746218,3401.0,3400.9,1.1457]
[1754180139059,0.9007,3401.0,3400.9,1.1457]
[1754180139454,1.76,3401.0,3400.9,1.1457]
[1754180139650,1.76,3401.0,3400.8,0.9322]
[1754180139651,1.76,3400.7,3400.4,1.1457]
[1754180139956,1.9829,3400.4,3400.2,1.1457]
[1754180140255,1.9829,3400.4,3400.1,1.52055]
[1754180140256,1.9829,3400.4,3400.3,1.73401]
[1754180140461,3.7961,3400.4,3399.8,3.79619]
[1754180140659,3.7961,3400.4,3399.8,4.94189]
[1754180140867,0.8593,3399.9,3399.8,4.72839]
[1754180141361,0.8593,3399.9,3399.8,5.87409]
[1754180141563,3.2078,3400.4,3400.3,1.73401]
[1754180141862,3.2078,3400.5,3400.4,0.9322]
[1754180142057,3.2078,3400.5,3400.4,1.3262]
[1754180142456,3.2078,3400.5,3400.4,2.4719]
[1754180143957,3.2078,3400.5,3400.4,2.0779]
[1754180144165,4.9678,3400.5,3400.4,1.1457]
[1754180144660,0.8593,3400.3,3399.9,0.58838]
[1754180144865,1.76,3400.1,3400.0,2.66626]
[1754180145050,0.8593,3400.1,3400.0,2.66626]
[1754180145257,0.8593,3400.1,3400.0,3.05506]
[1754180146064,1.976,3400.1,3399.9,0.58837]
[1754180146265,1.976,3400.0,3399.9,0.58837]
[1754180146464,1.976,3400.0,3399.9,1.73407]
[1754180146864,1.976,3399.9,3399.6,0.9322]
[1754180147069,0.216,3399.8,3399.6,2.66632]
[1754180147260,1.76,3399.7,3399.6,2.66632]
[1754180147563,0.8593,3399.7,3399.6,3.05512]
[1754180149074,4.1085,3400.6,3399.8,1.471]
[1754180149267,4.1085,3400.6,3399.9,1.5345]
[1754180149464,1.976,3400.4,3400.3,1.1457]
[1754180149771,0.8593,3400.4,3400.3,2.4667]
[1754180152363,3.2078,3400.6,3400.5,2.4667]
[1754180152562,4.0671,3401.2,3401.1,2.4667]
[1754180154866,3.2078,3401.2,3401.1,2.4667]
[1754180156662,3.2078,3401.6,3401.5,0.5881]
[1754180156870,0.8593,3401.8,3401.7,2.0779]
[1754180157272,4.0671,3402.0,3401.8,0.58805]
[1754180157572,3.2078,3402.0,3401.9,2.4667]
[1754180159271,1.952,3401.8,3401.7,1.1251]
[1754180159577,0.1946,3401.8,3401.7,1.1251]
[1754180159875,3.2078,3402.0,3401.7,2.0933]
[1754180160077,1.952,3401.9,3401.8,1.1251]
[1754180160571,0.58805,3401.8,3401.5,1.1251]
[1754180160774,1.952,3401.9,3401.8,1.71314]
[1754180161076,1.7574,3401.9,3401.8,2.0933]
[1754180161473,1.7574,3401.7,3401.4,3.2078]
[1754180161668,0.8945,3401.5,3401.4,3.2078]
[1754180161971,3.2078,3402.0,3401.1,0.9682]
[1754180161972,3.2078,3402.0,3401.5,1.3409]
[1754180162277,0.8629,3401.6,3401.4,0.58812]
[1754180162476,0.8629,3401.5,3401.4,0.96082]
[1754180162675,0.8629,3401.5,3401.4,1.92902]
[1754180162882,0.58811,3401.5,3401.1,1.55637]
[1754180163178,0.1946,3401.3,3401.2,1.1251]
[1754180163578,0.1946,3401.5,3401.1,1.71327]
[1754180163770,0.1946,3401.5,3401.3,1.71323]
[1754180163971,1.952,3401.4,3401.3,1.71323]
[1754180164168,3.2078,3401.6,3401.5,1.7132]
[1754180164368,3.2078,3402.0,3401.8,0.58805]
[1754180164570,4.0707,3402.0,3401.9,2.466]
[1754180164879,3.2078,3402.4,3402.3,2.466]
[1754180165378,2.086,3402.5,3402.4,0.9682]
[1754180165580,2.086,3402.5,3402.4,2.0933]
[1754180165873,0.8945,3402.7,3402.5,3.05393]
[1754180165874,2.086,3402.7,3402.5,3.05393]
[1754180166074,4.0707,3402.8,3402.7,0.3727]
[1754180166279,6.1883,3402.8,3402.7,2.466]
[1754180166574,1.0,3403.0,3402.8,0.58788]
[1754180166775,1.0,3403.0,3402.9,2.466]
[1754180167477,3.086,3403.0,3402.9,2.466]
[1754180168980,2.9805,3402.9,3402.7,1.1251]
[1754180169180,2.086,3402.9,3402.8,2.08568]
[1754180169380,1.0,3403.0,3402.9,0.3727]
[1754180169583,1.0,3403.0,3402.9,1.4978]
[1754180169978,1.0,3403.0,3402.9,2.466]
[1754180172874,0.8629,3403.6,3403.5,0.58776]
[1754180173173,4.0707,3403.8,3403.7,2.466]
[1754180173387,2.9805,3403.7,3403.3,2.0933]
[1754180173584,0.58773,3403.7,3403.0,4.176]
[1754180173882,2.086,3403.5,3403.0,4.176]
[1754180174078,0.58779,3403.3,3403.0,3.2078]
[1754180174278,1.7574,3403.0,3402.7,0.5879]
[1754180174487,1.7574,3402.8,3402.6,4.76391]
[1754180174672,1.7574,3402.7,3402.6,4.76391]
[1754180174877,2.9805,3402.7,3402.6,4.76391]
[1754180175276,2.9805,3402.7,3402.6,3.79571]
[1754180175488,1.4697,3402.9,3402.2,3.2078]
[1754180175783,2.9805,3402.4,3402.2,1.55617]
[1754180175982,0.8629,3402.6,3402.3,3.05396]
[1754180176285,1.2231,3402.6,3402.5,0.58793]
[1754180176483,2.1176,3402.6,3402.5,2.0933]
[1754180176685,2.1176,3402.6,3402.5,0.9682]
[1754180176887,2.9805,3402.6,3402.2,1.1251]
[1754180177082,0.8945,3402.5,3402.2,2.0933]
[1754180177286,0.5879,3402.7,3402.2,2.0933]
[1754180177287,2.9805,3402.6,3402.2,2.0933]
[1754180177488,2.9805,3402.3,3402.2,0.9682]
[1754180177885,2.086,3402.4,3401.7,3.2078]
[1754180178186,2.1176,3402.1,3401.8,0.58805]
[1754180178486,2.9805,3401.9,3401.8,0.9682]
[1754180178681,2.9805,3401.9,3401.7,3.2078]
[1754180178884,2.9805,3401.8,3401.7,3.2078]
[1754180179684,2.086,3402.2,3401.4,2.466]
[1754180179887,3.2078,3402.9,3402.2,2.466]
[1754180180085,3.2078,3402.4,3402.3,1.1251]
[1754180180283,2.9805,3402.8,3402.3,1.1251]
[1754180180483,3.79567,3402.9,3402.3,2.68126]
[1754180180688,0.8945,3402.6,3402.4,1.4978]
[1754180180888,2.086,3402.4,3401.7,2.0933]
[1754180181384,0.8945,3402.1,3401.9,0.9682]
[1754180181591,0.8629,3402.5,3402.3,0.9682]
[1754180181793,2.9805,3402.4,3402.3,0.9682]
[1754180181977,0.8629,3402.5,3402.4,1.3409]
[1754180182185,2.086,3402.5,3402.4,2.466]
[1754180182389,2.086,3402.8,3402.5,2.466]
[1754180182591,2.086,3402.8,3402.7,2.466]
[1754180183000,2.9805,3402.8,3402.7,2.466]
[1754180183286,2.086,3402.8,3402.7,2.466]
[1754180183885,2.086,3403.0,3402.8,2.466]
[1754180184191,0.8629,3402.9,3402.8,1.4978]
[1754180184393,2.086,3402.9,3402.8,1.4978]
[1754180184796,2.086,3402.9,3402.8,2.466]
[1754180185096,3.56831,3403.2,3402.6,0.58792]
[1754180185294,0.58786,3403.0,3402.6,0.58792]
[1754180185491,2.67388,3402.8,3402.3,0.58797]
[1754180185798,3.56842,3402.6,3402.2,2.0933]
[1754180185997,2.086,3402.8,3402.5,3.05393]
[1754180186294,0.58797,3402.4,3402.1,3.2078]
[1754180186489,2.9805,3402.2,3402.1,3.2078]
[1754180186797,2.086,3402.4,3402.2,0.58798]
[1754180186996,2.086,3402.4,3402.3,2.466]
[1754180187397,2.9805,3402.7,3402.3,2.466]
[1754180187593,3.2078,3402.9,3402.4,0.58795]
[1754180187907,1.7574,3402.8,3402.7,2.0933]
[1754180188202,2.8787,3402.8,3402.7,2.4699]
[1754180188894,2.8787,3402.8,3402.7,2.0933]
[1754180189099,2.8787,3402.8,3402.7,0.9682]
[1754180190099,0.5879,3402.7,3402.4,1.5644]
[1754180190298,4.8198,3402.6,3402.5,1.5586]
[1754180190789,4.8198,3402.6,3402.5,3.9263]
[1754180190989,0.8379,3402.8,3402.6,2.5227]
[1754180191185,2.05,3402.7,3402.6,2.4902]
[1754180191400,4.8198,3402.7,3402.6,3.2935]
[1754180191702,3.9122,3402.7,3402.6,4.4813]
[1754180192083,4.8198,3402.7,3402.6,4.4813]
[1754180192496,4.8198,3402.7,3401.9,3.2078]
[1754180192497,0.8379,3402.6,3402.1,2.5227]
[1754180192696,3.9122,3402.5,3402.4,1.4036]
[1754180192893,3.9122,3402.5,3402.4,2.7385]
[1754180193288,0.9076,3402.3,3402.0,1.99162]
[1754180193495,4.0789,3402.2,3402.1,3.5497]
[1754180193691,4.8198,3402.2,3402.1,3.5497]
[1754180193893,4.8198,3402.2,3402.1,2.3619]
[1754180194190,0.6387,3402.5,3402.4,4.69265]
[1754180194388,0.6387,3402.5,3400.3,0.29278689]
[1754180194389,3.2078,3403.3,3403.1,0.58783]
[1754180194598,3.2078,3403.7,3403.6,0.58774]
[1754180194789,0.82839143,3403.7,3403.6,1.92264]
[1754180194996,0.82839143,3403.7,3403.6,3.11044]
[1754180195297,1.05193267,3404.2,3403.9,0.58769]
[1754180195508,1.05193267,3404.2,3404.1,2.73376]
[1754180196288,1.05193267,3404.4,3404.1,0.58766]
[1754180196490,2.69139535,3404.9,3403.3,0.21964207]
[1754180196491,1.05193267,3404.9,3404.7,0.58755]
[1754180196800,1.05193267,3405.0,3404.8,0.58754]
[1754180196997,0.9076,3405.3,3405.2,0.58747]
[1754180197204,5.09763267,3405.5,3405.2,0.58747]
[1754180197205,4.0457,3405.5,3405.2,0.58747]
[1754180197404,4.0457,3405.5,3405.4,2.1461]
[1754180197593,1.88983267,3405.8,3405.5,0.58742]
[1754180197901,0.8379,3405.8,3405.5,0.58742]
[1754180198193,0.8379,3405.8,3405.7,2.1461]
[1754180199103,1.0,3406.0,3405.9,2.1461]
[1754180201400,0.58735,3405.9,3405.7,3.2078]
[1754180201600,1.7455,3405.8,3405.7,5.3539]
[1754180201900,1.0,3406.0,3405.8,1.1878]
[1754180202102,1.0,3406.0,3405.7,3.2078]
[1754180202401,1.0,3406.0,3405.8,2.1461]
[1754180202602,1.0,3406.0,3405.9,2.1461]
[1754180203099,2.8668,3405.8,3405.7,3.2078]
[1754180203295,1.0,3406.0,3405.8,0.58736]
[1754180203492,1.0,3406.0,3405.9,2.1461]